fUSD/lending_fUSD_20260115
["ID","MTS","AMOUNT","RATE_DAILY","PERIOD"]
[402078975,1768512140274,-151.0,0.00016455,2]
[402078976,1768512140303,-151.0,0.00016455,2]
[402078977,1768512143333,-151.0,0.00016277,2]
[402078978,1768512143367,-151.0,0.00016277,2]
[402078979,1768512143398,-500.0,0.00016455,2]
[402078980,1768512143874,-500.0,0.00016455,2]
[402078981,1768512151060,-500.0,0.00016454,2]
[402078982,1768512151105,-341.15949194,0.00016454,2]
[402078983,1768512151157,-500.0,0.00016454,2]
[402078984,1768512151202,-156.75586223,0.00016454,2]
[402078985,1768512151256,-500.0,0.00016454,2]
[402078986,1768512151305,-500.0,0.00016454,2]
[402078987,1768512151354,-500.0,0.00016454,2]
[402078988,1768512151401,-500.0,0.00016454,2]
[402078989,1768512151448,-500.0,0.00016454,2]
[402078990,1768512151496,-500.0,0.00016454,2]
[402078991,1768512151543,-500.0,0.00016454,2]
[402078992,1768512153187,-500.0,0.00016454,2]
[402078993,1768512153219,-500.0,0.00016454,2]
[402078994,1768512153254,-500.0,0.00016454,2]
[402078995,1768512153285,-500.0,0.00016454,2]
[402078996,1768512153318,-229.97340749,0.00016454,2]
[402078997,1768512153351,-500.0,0.00016454,2]
[402078998,1768512153383,-500.0,0.00016454,2]
[402078999,1768512153415,-500.0,0.00016454,2]
[402079000,1768512153446,-500.0,0.00016454,2]
[402079001,1768512153479,-500.0,0.00016454,2]
[402079002,1768512153512,-40.06318502,0.00016454,2]
[402079003,1768512154165,-459.93681498,0.00016454,2]
[402079004,1768512154195,-500.0,0.00016455,2]
[402079005,1768512154224,-500.0,0.00016455,2]
[402079006,1768512154259,-500.0,0.00016455,2]
[402079007,1768512154291,-500.0,0.00016455,2]
[402079008,1768512154320,-500.0,0.00016455,2]
[402079009,1768512154350,-500.0,0.00016455,2]
[402079010,1768512154379,-200.0,0.00016455,2]
[402079011,1768512161487,-916.6051,0.00016355,2]
[402079012,1768512161519,-208.34838842,0.00016355,2]
[402079013,1768512161766,-9657.33923578,0.00016455,2]
[402079014,1768512164498,-10000.01,0.00016455,2]
[402079015,1768512164628,-10000.01,0.00016455,2]
[402079016,1768512167682,-1385.27,0.00016355,2]
[402079017,1768512174493,151.0,0.00016288,2]
[402079018,1768512174932,151.0,0.00016288,2]
[402079019,1768512176517,500.0,0.00016454,2]
[402079020,1768512176583,500.0,0.00016454,2]
[402079021,1768512176736,500.0,0.00016454,2]
[402079022,1768512176968,500.0,0.00016454,2]
[402079023,1768512179400,3194.61,0.00016007,2]
[402079024,1768512187972,1142.53177309,0.00016453,2]
[402079025,1768512188075,590.32822691,7.945e-05,2]
[402079026,1768512188103,3412.17701009,7.945e-05,2]
[402079028,1768512190726,151.0,0.00016284,2]
[402079029,1768512191121,151.0,0.00016284,2]
[402079030,1768512196246,500.0,0.00016454,2]
[402079031,1768512196280,500.0,0.00016454,2]
[402079032,1768512196661,500.0,0.00016454,2]
[402079033,1768512196704,500.0,0.00016454,2]
[402079034,1768512197543,1200.0,0.00016454,2]
[402079035,1768512198146,500.0,0.00016454,2]
[402079036,1768512198728,500.0,0.00016454,2]
[402079037,1768512198876,500.0,0.00016454,2]
[402079038,1768512199088,500.0,0.00016454,2]
[402079039,1768512199577,500.0,0.00016454,2]
[402079040,1768512200741,252.39934328,0.00016454,2]
[402079041,1768512203153,229.97340749,0.00016454,2]
[402079042,1768512203193,103.46023914,0.00016372,2]
[402079043,1768512203218,307.42413086,0.00016372,2]
[402079044,1768512207544,151.0,0.00016283,2]
[402079045,1768512207582,151.0,0.00016283,2]
[402079046,1768512209196,500.0,0.00016454,2]
[402079047,1768512209420,500.0,0.00016454,2]
[402079048,1768512209640,545.89683848,0.00016454,2]
[402079049,1768512213294,166.66,0.00015079,2]
[402079050,1768512213538,166.66,0.00015397,2]
[402079051,1768512213843,166.66,0.00015714,2]
[402079052,1768512213981,166.66,0.00016032,2]
[402079053,1768512214219,166.66,0.00016349,2]
[402079054,1768512218893,500.0,0.00016454,2]
[402079055,1768512218927,155.92563731,0.00016454,2]
[402079056,1768512218968,500.0,0.00016454,2]
[402079057,1768512219015,500.0,0.00016454,2]
[402079058,1768512219064,500.0,0.00016454,2]
[402079059,1768512219476,500.0,0.00016454,2]
[402079060,1768512219543,500.0,0.00016454,2]
[402079061,1768512219582,500.0,0.00016454,2]
[402079062,1768512219636,500.0,0.00016454,2]
[402079063,1768512219687,500.0,0.00016454,2]
[402079064,1768512219723,500.0,0.00016454,2]
[402079065,1768512219769,500.0,0.00016454,2]
[402079066,1768512219832,500.0,0.00016454,2]
[402079067,1768512219929,500.0,0.00016454,2]
[402079068,1768512219985,355.46339335,0.00016454,2]
[402079069,1768512220011,144.53660665,0.00016454,2]
[402079070,1768512220047,500.0,0.00016454,2]
[402079071,1768512220092,500.0,0.00016454,2]
[402079072,1768512220127,500.0,0.00016454,2]
[402079073,1768512220157,500.0,0.00016454,2]
[402079074,1768512220187,500.0,0.00016454,2]
[402079075,1768512220219,500.0,0.00016454,2]
[402079076,1768512220255,500.0,0.00016454,2]
[402079077,1768512220287,500.0,0.00016454,2]
[402079078,1768512220329,500.0,0.00016454,2]
[402079079,1768512220371,500.0,0.00016454,2]
[402079080,1768512220406,500.0,0.00016454,2]
[402079081,1768512220440,500.0,0.00016454,2]
[402079082,1768512220470,500.0,0.00016454,2]
[402079083,1768512220501,500.0,0.00016454,2]
[402079084,1768512220547,500.0,0.00016454,2]
[402079085,1768512220587,500.0,0.00016454,2]
[402079086,1768512220625,500.0,0.00016454,2]
[402079087,1768512220654,500.0,0.00016454,2]
[402079088,1768512220689,500.0,0.00016454,2]
[402079089,1768512220737,355.47339335,0.00016454,2]
[402079090,1768512220763,144.52660665,0.00016454,2]
[402079091,1768512220796,239.10064471,0.00016454,2]
[402079092,1768512220836,500.0,0.00016454,2]
[402079093,1768512220880,500.0,0.00016454,2]
[402079094,1768512220938,500.0,0.00016454,2]
[402079095,1768512232505,500.0,0.00016454,2]
[402079096,1768512232540,500.0,0.00016454,2]
[402079097,1768512232581,500.0,0.00016454,2]
[402079098,1768512232617,500.0,0.00016454,2]
[402079099,1768512232648,500.0,0.00016454,2]
[402079100,1768512232684,500.0,0.00016454,2]
[402079101,1768512232731,500.0,0.00016454,2]
[402079102,1768512233681,186.70130142,0.00016454,2]
[402079103,1768512242325,550.0,0.00016454,2]
[402079104,1768512243781,152.93,0.00019178,30]
[402079105,1768512244964,5763.30869858,0.00016355,2]
[402079106,1768512244989,10000.01,0.00016355,2]
[402079107,1768512245013,9599.41940142,0.00016355,2]
[402079108,1768512248049,199.52165048,0.00016454,2]
[402079109,1768512251171,5822.6563,0.00016355,2]
[402079110,1768512255180,500.0,0.00016454,2]
[402079111,1768512265783,500.0,0.00016454,2]
[402079112,1768512265818,500.0,0.00016454,2]
[402079113,1768512265849,500.0,0.00016454,2]
[402079114,1768512265892,500.0,0.00016454,2]
[402079115,1768512265930,500.0,0.00016454,2]
[402079116,1768512265969,248.79369769,0.00016454,2]
[402079117,1768512266008,500.0,0.00016454,2]
[402079118,1768512266043,428.56000231,0.00016454,2]
[402079119,1768512266068,71.43999769,0.00016454,2]
[402079120,1768512266116,500.0,0.00016454,2]
[402079121,1768512266169,500.0,0.00016454,2]
[402079122,1768512273521,709.91,0.00015852,2]
[402079123,1768512286980,8218.66000231,0.00016355,2]
[402079124,1768512287006,10000.01,0.00016355,2]
[402079125,1768512287032,1321.33628878,0.00016355,2]
[402079126,1768512314380,1869.33536503,0.000121,30]
[402079127,1768512325782,479.16486957,0.0003013,120]
[402079128,1768512330637,189.48857366,0.0002,120]
[402079129,1768512332421,678.29141319,0.0002739,120]
[402079130,1768512340112,-9766.65540796,0.00016,2]
[402079131,1768512340241,-10000.01,0.00016,2]
[402079132,1768512342920,-10000.01,0.00016,2]
[402079133,1768512343050,-10000.01,0.00016,2]
[402079134,1768512349003,-1660.03203986,0.00016,2]
[402079135,1768512349030,-6679.94592028,0.00016,2]
[402079136,1768512349155,-3003.1681,0.00016355,2]
[402079137,1768512349187,-1447.6714,0.00016355,2]
[402079138,1768512349220,-300.6515313,0.00016355,2]
[402079139,1768512349310,-497.0279374,0.00016355,2]
[402079140,1768512351975,600.12318188,0.000136,2]
[402079141,1768512351999,2797.91159094,0.000136,2]
[402079142,1768512352022,2797.91159094,0.000136,2]
[402079143,1768512352046,2797.91159094,0.000136,2]
[402079144,1768512352068,2797.91159094,0.000136,2]
[402079145,1768512352091,2797.91159094,0.000136,2]
[402079146,1768512352114,2797.91159094,0.000136,2]
[402079147,1768512352139,2797.91159094,0.000136,2]
[402079148,1768512352162,2165.32767693,0.000136,2]
[402079149,1768512355268,-276.38,0.00016,2]
[402079150,1768512355307,-2551.80826395,0.00016355,2]
[402079151,1768512355340,-195.0,0.00016355,2]
[402079152,1768512355751,-208.34838842,0.00016355,2]
[402079153,1768512355784,-300.0,0.00016454,2]
[402079154,1768512355816,-300.0,0.00016454,2]
[402079155,1768512355849,-1136.93669526,0.00016454,2]
[402079156,1768512356184,-63.06330474,0.00016454,2]
[402079158,1768512369042,151.0,0.0001626,2]
[402079159,1768512369073,151.0,0.0001626,2]
[402079160,1768512370821,210.97809706,0.0003013,120]
[402079162,1768512384671,501.24873655,0.00015,2]
[402079163,1768512384868,151.0,0.00016259,2]
[402079164,1768512385300,151.0,0.00016259,2]
[402079165,1768512386126,1241.98429892,0.00016355,2]
[402079166,1768512394611,500.0,0.00016454,2]
[402079167,1768512394667,500.0,0.00016454,2]
[402079168,1768512394708,3389.5631,0.00016355,2]
[402079169,1768512394748,497.26206667,0.00016454,2]
[402079170,1768512401192,2716.11094677,0.0003,120]
[402079171,1768512401303,151.0,0.00016259,2]
[402079172,1768512401941,151.0,0.00016259,2]
[402079173,1768512411684,2463.95179786,0.000162,5]
[402079174,1768512411708,10000.01,0.000162,5]
[402079175,1768512411733,10000.01,0.000162,5]
[402079176,1768512413649,-10000.01,0.000162,5]
[402079177,1768512413735,-10000.01,0.000162,5]
[402079178,1768512415917,-3240.0,0.00015796,2]
[402079179,1768512416091,-3520.01,0.000162,5]
[402079180,1768512416158,-10000.01,0.000162,5]
[402079181,1768512416188,-10000.01,0.000162,5]
[402079182,1768512416279,-10000.01,0.000162,5]
[402079183,1768512416400,-10000.01,0.000162,5]
[402079184,1768512416934,488.18557395,0.0003013,120]
[402079185,1768512418967,-10000.01,0.000162,5]
[402079186,1768512419081,-10000.01,0.000162,5]
[402079187,1768512422332,776.75582156,0.000226,120]
[402079188,1768512425902,-887.83295923,0.00015,2]
[402079189,1768512457138,2441.30913407,0.00028,120]
[402079190,1768512458673,1462.26800624,0.00028,120]
[402079191,1768512464342,930.12391449,0.00013,15]
[402079192,1768512468731,501.86313919,0.00014,2]
[402079193,1768512476798,1085.4465773,0.00028297,120]
[402079194,1768512486275,-220.1226802,0.0001439,2]
[402079195,1768512486311,130.72077482,0.000135,2]
[402079196,1768512487343,-372.11586957,0.000135,2]
[402079197,1768512490568,-170.65569331,0.000135,2]
[402079198,1768512491776,-113.76370894,0.000135,2]
[402079199,1768512491803,-108.46838859,0.0001439,2]
[402079200,1768512494411,-164.83561343,0.0001439,2]
[402079201,1768512497119,-200.22499774,0.0001439,2]
[402079202,1768512498272,-195.0,0.0001439,2]
[402079203,1768512500522,-151.0252419,0.0001439,2]
[402079204,1768512502195,-4459.98895005,0.0001439,2]
[402079205,1768512502222,-1080.0320999,0.0001439,2]
[402079206,1768512502267,1168.42895425,0.0003,120]
[402079207,1768512502560,381.20511572,0.000246,120]
[402079208,1768512502602,-1200.0,0.00014999,2]
[402079209,1768512502632,-323.26844737,0.00015,2]
[402079210,1768512502716,-6953.47310526,0.00015,2]
[402079211,1768512502760,-3941.07763782,0.00015,2]
[402079212,1768512502791,-250.0,0.0001515,2]
[402079213,1768512502823,-100.21472436,0.000153,2]
[402079214,1768512502887,-1417.42527564,0.000153,2]
[402079215,1768512502926,-10000.01,0.00015366,2]
[402079216,1768512503123,-2531.96384199,0.00015366,2]
[402079217,1768512503157,-250.0,0.00015811,2]
[402079218,1768512503189,-300.0,0.00015829,2]
[402079219,1768512503357,-3836.08231602,0.0001619,2]
[402079220,1768512503417,-10000.01,0.0001619,2]
[402079221,1768512503435,-10000.01,0.0001619,2]
[402079222,1768512503579,-10000.01,0.0001619,2]
[402079223,1768512503691,-10000.01,0.0001619,2]
[402079224,1768512504124,2140.24202847,0.0003,120]
[402079225,1768512505043,-10000.01,0.0001619,2]
[402079227,1768512507413,1211.12982529,0.00028767,120]
[402079228,1768512508149,-10000.01,0.0001619,2]
[402079229,1768512508316,-10000.01,0.0001619,2]
[402079230,1768512508417,-10000.01,0.0001619,2]
[402079231,1768512508535,-2001.19707394,0.0001619,2]
[402079232,1768512508565,-5997.61585212,0.0001619,2]
[402079234,1768512510028,192.80133632,0.00015807,2]
[402079235,1768512511365,-550.0,0.00016199,2]
[402079236,1768512511400,-300.0,0.00016199,2]
[402079237,1768512511496,-8107.20866368,0.000162,5]
[402079238,1768512511560,-10000.01,0.000162,5]
[402079239,1768512512648,201.48010514,0.0003013,120]
[402079240,1768512514188,-10000.01,0.00015,2]
[402079241,1768512514349,-10000.01,0.00015,2]
[402079242,1768512514506,-2294.72676122,0.00015,2]
[402079243,1768512514531,-5410.55647756,0.00015,2]
[402079245,1768512516866,1070.53982642,0.0002,120]
[402079246,1768512517259,-10000.01,0.00016,4]
[402079247,1768512518303,423.52568168,0.0002,120]
[402079248,1768512518714,-10000.01,0.00016,4]
[402079249,1768512518967,999.0,0.0003,120]
[402079250,1768512521235,-10000.01,0.00016,4]
[402079251,1768512522017,-10000.01,0.00016,4]
[402079252,1768512522255,-10000.01,0.00016,4]
[402079253,1768512522484,-10000.01,0.00016,4]
[402079254,1768512523211,-10000.01,0.00016,4]
[402079255,1768512526356,-10000.01,0.00016,4]
[402079256,1768512526773,-10000.01,0.00016,4]
[402079257,1768512529377,-10000.01,0.00016,4]
[402079258,1768512529640,-10000.01,0.00016,4]
[402079259,1768512529904,-10000.01,0.00016,4]
[402079260,1768512530110,-10000.01,0.00016,4]
[402079261,1768512530336,-10000.01,0.00016,4]
[402079263,1768512566125,-5391.792518,0.00016,4]
[402079264,1768512569992,-10000.01,0.00016,4]
[402079265,1768512577817,-10000.01,0.00016,4]
[402079266,1768512605865,-158.40486289,0.00013005,2]
[402079267,1768512608087,-179.07901585,0.00013005,2]
[402079268,1768512611539,-170.00404283,0.00013005,2]
[402079269,1768512613799,-400.91796203,0.00013005,2]
[402079270,1768512615449,-229.92687234,0.00013005,2]
[402079271,1768512616849,-202.89980045,0.00013005,2]
[402079272,1768512618936,-242.95328387,0.00013005,2]
[402079273,1768512621596,-162.0570813,0.00013005,2]
[402079274,1768512623115,-338.39666657,0.00013005,2]
[402079275,1768512625235,-264.33267322,0.00013005,2]
[402079276,1768512627224,-154.72105488,0.00013005,2]
[402079277,1768512629134,-486.47409497,0.00013005,2]
[402079278,1768512631741,-169.04788576,0.00013005,2]
[402079285,1768512632203,-1784.90968986,0.00013005,2]
[402079286,1768512632266,-55.87501318,0.00013005,2]
[402079287,1768512632276,-478.36854386,0.0001306,2]
[402079288,1768512632290,-253.18268074,0.0001306,2]
[402079289,1768512632299,-200.27764837,0.00014306,2]
[402079290,1768512632308,-1872.91611385,0.00014306,2]
[402079291,1768512632319,-2204.42030992,0.00014306,2]
[402079292,1768512632329,-344.18850888,0.00014306,2]
[402079293,1768512632338,-192.71819112,0.00014306,2]
[402079294,1768512632371,-2.28180888,0.00014306,2]
[402079295,1768512632380,-300.0,0.00015149,2]
[402079296,1768512632389,-300.0,0.00015149,2]
[402079297,1768512632399,-1200.0,0.00015149,2]
[402079298,1768512632411,-276.0,0.00015149,2]
[402079299,1768512632421,-2041.03704205,0.0001515,2]
[402079300,1768512632430,-4315.25790522,0.0001515,2]
[402079301,1768512632439,-981.08616812,0.0001515,2]
[402079302,1768512632448,-1500.0,0.00015395,2]
[402079303,1768512632458,-1724.05,0.00015498,2]
[402079304,1768512632467,-300.0,0.00015531,2]
[402079305,1768512632477,-83914.98,0.00015532,2]
[402079306,1768512632486,-11544.10763476,0.00016,4]
[402079307,1768512632497,-21621.6476834,0.00016,4]
[402079308,1768512632507,-268.12209397,0.000161,2]
[402079309,1768512632516,-500.0,0.00016199,2]
[402079310,1768512632525,-500.0,0.00016199,2]
[402079311,1768512632534,-500.0,0.00016199,2]
[402079312,1768512632545,-500.0,0.00016199,2]
[402079313,1768512632554,-500.0,0.00016199,2]
[402079314,1768512632564,-500.0,0.00016199,2]
[402079315,1768512632573,-525.81295632,0.00016199,2]
[402079316,1768512632582,-500.0,0.00016199,2]
[402079317,1768512632591,-500.0,0.00016199,2]
[402079318,1768512632600,-500.0,0.00016199,2]
[402079319,1768512632610,-500.0,0.00016199,2]
[402079320,1768512632619,-294.52444386,0.00016199,2]
[402079321,1768512632628,-500.0,0.00016199,2]
[402079322,1768512632637,-500.0,0.00016199,2]
[402079323,1768512632646,-500.0,0.00016199,2]
[402079324,1768512632655,-500.0,0.00016199,2]
[402079325,1768512632664,-500.0,0.00016199,2]
[402079326,1768512632673,-500.0,0.00016199,2]
[402079327,1768512632682,-18142.87854887,0.000162,5]
[402079328,1768512632694,-20227.57023105,0.000162,5]
[402079331,1768512638258,-871.643,0.000162,5]
[402079332,1768512638318,-916.60502421,0.000162,5]
[402079333,1768512638330,-658.73355852,0.000162,5]
[402079334,1768512638341,-3424.4451543,0.000162,5]
[402079335,1768512638353,-169656.27488557,0.000162,5]
[402079336,1768512638364,-16887.39851575,0.00016202,2]
[402079339,1768512638670,-11762.48423671,0.00016231,2]
[402079340,1768512638679,-819.16663093,0.00016345,2]
[402079341,1768512638688,-76109.43788682,0.00016355,2]
[402079342,1768512638700,-923890.56211318,0.00016355,2]
[402079343,1768512638709,-176.51382373,0.00016355,2]
[402079344,1768512638718,-16887.39851566,0.00016391,2]
[402079345,1768512638727,-764.0,0.00016416,2]
[402079346,1768512638737,-500.0,0.00016438,2]
[402079347,1768512638746,-500.0,0.00016438,2]
[402079348,1768512638755,-500.0,0.00016438,2]
[402079349,1768512638764,-500.0,0.00016438,2]
[402079350,1768512638774,-500.0,0.00016438,2]
[402079351,1768512638783,-500.0,0.00016438,2]
[402079352,1768512638792,-500.0,0.00016438,2]
[402079353,1768512638801,-500.0,0.00016438,2]
[402079354,1768512638810,-500.0,0.00016438,2]
[402079355,1768512638819,-500.0,0.00016438,2]
[402079356,1768512638831,-500.0,0.00016438,2]
[402079357,1768512638840,-500.0,0.00016438,2]
[402079358,1768512638850,-500.0,0.00016438,2]
[402079359,1768512638859,-500.0,0.00016438,2]
[402079360,1768512638868,-500.0,0.00016438,2]
[402079361,1768512638878,-500.0,0.00016438,2]
[402079362,1768512638887,-500.0,0.00016438,2]
[402079363,1768512638896,-500.0,0.00016438,2]
[402079364,1768512638906,-500.0,0.00016438,2]
[402079365,1768512638915,-500.0,0.00016438,2]
[402079366,1768512638925,-500.0,0.00016438,2]
[402079367,1768512638934,-500.0,0.00016438,2]
[402079368,1768512638943,-500.0,0.00016438,2]
[402079369,1768512638953,-500.0,0.00016438,2]
[402079370,1768512638963,-500.0,0.00016438,2]
[402079371,1768512638973,-500.0,0.00016438,2]
[402079372,1768512638982,-500.0,0.00016438,2]
[402079373,1768512638992,-500.0,0.00016438,2]
[402079374,1768512639001,-500.0,0.00016438,2]
[402079375,1768512639010,-500.0,0.00016438,2]
[402079376,1768512639020,-500.0,0.00016438,2]
[402079377,1768512639029,-500.0,0.00016438,2]
[402079378,1768512639039,-500.0,0.00016438,2]
[402079379,1768512639049,-500.0,0.00016438,2]
[402079380,1768512639059,-500.0,0.00016438,2]
[402079381,1768512639068,-500.0,0.00016438,2]
[402079382,1768512639078,-500.0,0.00016438,2]
[402079383,1768512639087,-500.0,0.00016438,2]
[402079384,1768512639096,-500.0,0.00016438,2]
[402079385,1768512639106,-500.0,0.00016438,2]
[402079386,1768512639115,-500.0,0.00016438,2]
[402079387,1768512639125,-500.0,0.00016438,2]
[402079389,1768512639134,-500.0,0.00016438,2]
[402079391,1768512639143,-500.0,0.00016438,2]
[402079393,1768512639153,-500.0,0.00016438,2]
[402079395,1768512639162,-500.0,0.00016438,2]
[402079397,1768512639171,-500.0,0.00016438,2]
[402079398,1768512639180,-500.0,0.00016438,2]
[402079400,1768512639190,-500.0,0.00016438,2]
[402079402,1768512639200,-500.0,0.00016438,2]
[402079404,1768512639209,-500.0,0.00016438,2]
[402079406,1768512639220,-500.0,0.00016438,2]
[402079408,1768512639230,-500.0,0.00016438,2]
[402079410,1768512639240,-500.0,0.00016438,2]
[402079412,1768512639251,-500.0,0.00016438,2]
[402079414,1768512639261,-500.0,0.00016438,2]
[402079417,1768512639271,-500.0,0.00016438,2]
[402079418,1768512639281,-500.0,0.00016438,2]
[402079420,1768512639289,-500.0,0.00016438,2]
[402079422,1768512639299,-500.0,0.00016438,2]
[402079424,1768512639307,-431.34768926,0.00016438,2]
[402079426,1768512639317,-500.0,0.00016438,2]
[402079428,1768512639326,-930.13807815,0.00016438,2]
[402079430,1768512639335,-930.13807815,0.00016438,2]
[402079432,1768512639344,-930.13807815,0.00016438,2]
[402079434,1768512639357,-930.13807815,0.00016438,2]
[402079436,1768512639366,-930.13807815,0.00016438,2]
[402079438,1768512639375,-930.13807815,0.00016438,2]
[402079440,1768512639384,-930.13807815,0.00016438,2]
[402079442,1768512639393,-930.13807815,0.00016438,2]
[402079444,1768512639402,-930.13807815,0.00016438,2]
[402079446,1768512639411,-930.13807815,0.00016438,2]
[402079448,1768512639422,-930.13807815,0.00016438,2]
[402079450,1768512639431,-930.13807815,0.00016438,2]
[402079452,1768512639440,-930.13807815,0.00016438,2]
[402079454,1768512639449,-930.13807815,0.00016438,2]
[402079456,1768512639458,-930.13807815,0.00016438,2]
[402079458,1768512639468,-930.13807815,0.00016438,2]
[402079460,1768512639478,-930.13807815,0.00016438,2]
[402079462,1768512639487,-930.13807815,0.00016438,2]
[402079464,1768512639496,-930.13807815,0.00016438,2]
[402079466,1768512639506,-930.13807815,0.00016438,2]
[402079468,1768512639515,-930.13807815,0.00016438,2]
[402079470,1768512639523,-930.13807815,0.00016438,2]
[402079472,1768512639532,-337.14020815,0.00016438,2]
[402079474,1768512639545,-592.99787,0.00016438,2]
[402079476,1768512639554,-930.13807815,0.00016438,2]
[402079478,1768512639564,-930.13807815,0.00016438,2]
[402079480,1768512639573,-930.13807815,0.00016438,2]
[402079483,1768512639591,-930.13807815,0.00016438,2]
[402079485,1768512639602,-500.0,0.00016454,2]
[402079487,1768512639611,-500.0,0.00016454,2]
[402079488,1768512639621,-547.13953572,0.00016454,2]
[402079489,1768512639631,-500.0,0.00016454,2]
[402079490,1768512639640,-500.0,0.00016454,2]
[402079491,1768512639649,-500.0,0.00016454,2]
[402079492,1768512639658,-500.0,0.00016454,2]
[402079493,1768512639668,-200.0,0.00016455,2]
[402079494,1768512639677,-200.0,0.00016455,2]
[402079495,1768512639687,-500.0,0.00016455,2]
[402079496,1768512639696,-600.0,0.00016455,2]
[402079497,1768512639705,-193.0,0.00016455,2]
[402079498,1768512639715,-200.0,0.00016455,2]
[402079499,1768512639724,-484.49326144,0.00016455,2]
[402079500,1768512639735,-176.51382373,0.00016455,2]
[402079501,1768512639744,-1000.0,0.00016456,2]
[402079502,1768512639754,-216.56969934,0.000165,2]
[402079503,1768512639763,-250.0,0.000165,2]
[402079504,1768512639773,-195.0,0.000165,2]
[402079505,1768512639782,-310.05,0.0001651,2]
[402079506,1768512639792,-9999.99,0.0001651,2]
[402079507,1768512639802,-513.53,0.0001651,2]
[402079508,1768512639812,-999.99,0.0001651,2]
[402079509,1768512639822,-150.99,0.0001651,2]
[402079510,1768512639831,-9999.99,0.0001651,2]
[402079511,1768512639841,-3128.71,0.0001651,2]
[402079512,1768512639850,-2769.59,0.0001651,2]
[402079513,1768512639860,-9999.99,0.0001651,2]
[402079514,1768512639869,-5159.48,0.0001651,2]
[402079515,1768512639878,-299.99,0.0001651,4]
[402079516,1768512639888,-1000.0,0.00016554,2]
[402079517,1768512639898,-500.0,0.00016555,2]
[402079518,1768512639907,-500.0,0.00016555,2]
[402079519,1768512639918,-500.0,0.00016555,2]
[402079520,1768512639927,-500.0,0.00016555,2]
[402079521,1768512639939,-500.0,0.00016555,2]
[402079522,1768512639948,-500.0,0.00016555,2]
[402079523,1768512639957,-500.0,0.00016555,2]
[402079524,1768512639966,-500.0,0.00016555,2]
[402079525,1768512639976,-500.0,0.00016555,2]
[402079526,1768512639986,-500.0,0.00016555,2]
[402079527,1768512639995,-500.0,0.00016555,2]
[402079528,1768512640005,-500.0,0.00016555,2]
[402079529,1768512640015,-614.35342236,0.00016555,2]
[402079530,1768512640025,-500.0,0.00016555,2]
[402079531,1768512640034,-500.0,0.00016555,2]
[402079532,1768512640044,-500.0,0.00016555,2]
[402079533,1768512640054,-500.0,0.00016555,2]
[402079534,1768512640064,-1756.5,0.00016555,2]
[402079535,1768512640074,-500.0,0.00016555,2]
[402079536,1768512640083,-500.0,0.00016555,2]
[402079537,1768512640093,-500.0,0.00016555,2]
[402079538,1768512640102,-500.0,0.00016555,2]
[402079539,1768512640111,-500.0,0.00016555,2]
[402079540,1768512640121,-500.0,0.00016555,2]
[402079542,1768512640131,-500.0,0.00016555,2]